lending/lending_fUSD_20250316
["ID","MTS","AMOUNT","RATE_DAILY","PERIOD"]
[356237533,1742120933125,-961.99276351,9.8e-05,3]
[356237534,1742120933152,-3984.26688805,9.81e-05,2]
[356237535,1742120933188,-6238.00723649,9.81e-05,2]
[356237536,1742120933229,-6238.00723649,9.81e-05,2]
[356237537,1742120933265,-6238.00723649,9.81e-05,2]
[356237538,1742120933303,-6238.00723649,9.81e-05,2]
[356237539,1742120933337,-6238.00723649,9.81e-05,2]
[356237540,1742120933399,-6238.00723649,9.81e-05,2]
[356237541,1742120957403,-10000.0,9.81e-05,2]
[356237545,1742120958618,-833.59947027,9.81e-05,2]
[356237546,1742120958643,-9166.40052973,9.9e-05,2]
[356237547,1742120959499,-10000.0,9.9e-05,2]
[356237548,1742120959539,-10000.0,9.9e-05,2]
[356237549,1742120960035,-10000.0,9.9e-05,2]
[356237550,1742120960512,-10000.0,9.9e-05,2]
[356237551,1742120960938,-10000.0,9.9e-05,2]
[356237552,1742120961248,-10000.0,9.9e-05,2]
[356237553,1742120961720,-10000.0,9.9e-05,2]
[356237554,1742120962112,-10000.0,9.9e-05,2]
[356237555,1742120962497,-10000.0,9.9e-05,2]
[356237556,1742120962926,-10000.0,9.9e-05,2]
[356237557,1742120963272,-10000.0,9.9e-05,2]
[356237558,1742120963613,-10000.0,9.9e-05,2]
[356237559,1742120964060,-10000.0,9.9e-05,2]
[356237560,1742120964459,-10000.0,9.9e-05,2]
[356237561,1742120964869,-10000.0,9.9e-05,2]
[356237562,1742120965303,-10000.0,9.9e-05,2]
[356237563,1742120965639,-10000.0,9.9e-05,2]
[356237564,1742120966079,-3624.71187027,9.9e-05,2]
[356237565,1742120966104,-4100.0,9.9e-05,3]
[356237566,1742120966126,-2275.28812973,9.9e-05,2]
[356237567,1742120966505,-1860.32977027,9.9e-05,2]
[356237568,1742120966528,-6112.9745,9.9e-05,2]
[356237569,1742120966550,-176.15106505,9.9e-05,2]
[356237570,1742120966574,-172.11005055,9.971e-05,2]
[356237571,1742120966600,-497.78632315,9.971e-05,2]
[356237572,1742120966622,-500.0,9.971e-05,2]
[356237573,1742120966643,-501.78699881,9.971e-05,2]
[356237574,1742120966665,-178.86129217,9.971e-05,2]
[356237575,1742120966962,-313.88819921,9.971e-05,2]
[356237576,1742120966988,-160.35400048,9.972e-05,2]
[356237577,1742120967014,-9525.75780031,9.972e-05,2]
[356237578,1742120967635,-10000.0,9.972e-05,2]
[356237579,1742120967778,-10000.0,9.972e-05,2]
[356237580,1742120968259,-10000.0,9.972e-05,2]
[356237581,1742120968682,-10000.0,9.972e-05,2]
[356237582,1742120968992,-10000.0,9.972e-05,2]
[356237583,1742120969306,-10000.0,9.972e-05,2]
[356237584,1742120969915,-10000.0,9.972e-05,2]
[356237585,1742120970258,-10000.0,9.972e-05,2]
[356237586,1742120970638,-10000.0,9.972e-05,2]
[356237587,1742120971147,-10000.0,9.972e-05,2]
[356237588,1742120971723,-10000.0,9.972e-05,2]
[356237589,1742120972141,-10000.0,9.972e-05,2]
[356237590,1742120972498,-10000.0,9.972e-05,2]
[356237591,1742120973123,-10000.0,9.972e-05,2]
[356237592,1742120973497,-10000.0,9.972e-05,2]
[356237593,1742120974024,-10000.0,9.972e-05,2]
[356237594,1742120974380,-10000.0,9.972e-05,2]
[356237595,1742120974703,-10000.0,9.972e-05,2]
[356237596,1742120975051,-10000.0,9.972e-05,2]
[356237597,1742120975373,-10000.0,9.972e-05,2]
[356237598,1742120975774,-10000.0,9.972e-05,2]
[356237599,1742120976550,-10000.0,9.972e-05,2]
[356237600,1742120977047,-10000.0,9.972e-05,2]
[356237601,1742120977423,-10000.0,9.972e-05,2]
[356237602,1742120977859,-10000.0,9.972e-05,2]
[356237603,1742120978272,-10000.0,9.972e-05,2]
[356237604,1742120978868,-10000.0,9.972e-05,2]
[356237605,1742120978901,-10000.0,9.972e-05,2]
[356237606,1742120979376,-10000.0,9.972e-05,2]
[356237607,1742120979767,-10000.0,9.972e-05,2]
[356237608,1742120980078,-10000.0,9.972e-05,2]
[356237609,1742120980392,-10000.0,9.972e-05,2]
[356237610,1742120980725,-10000.0,9.972e-05,2]
[356237611,1742120981041,-10000.0,9.972e-05,2]
[356237612,1742120981551,-10000.0,9.972e-05,2]
[356237613,1742120982186,-10000.0,9.972e-05,2]
[356237614,1742120982362,-10000.0,9.972e-05,2]
[356237617,1742120982904,-10000.0,9.972e-05,2]
[356237618,1742120983498,-7206.56872237,9.972e-05,2]
[356237619,1742120983521,-2793.43127763,9.973e-05,2]
[356237620,1742120983975,-10000.0,9.973e-05,2]
[356237621,1742120984698,-10000.0,9.973e-05,2]
[356237622,1742120985256,-10000.0,9.973e-05,2]
[356237623,1742120985730,-10000.0,9.973e-05,2]
[356237624,1742120986058,-10000.0,9.973e-05,2]
[356237625,1742120986380,-10000.0,9.973e-05,2]
[356237626,1742120986935,-7220.56872237,9.973e-05,2]
[356237627,1742120986958,-500.36393608,9.973e-05,2]
[356237628,1742120986979,-150.0,9.999e-05,2]
[356237629,1742120987010,-2129.06734155,0.0001,2]
[356237630,1742120987751,-10000.0,0.0001,2]
[356237631,1742120988541,-10000.0,0.0001,2]
[356237632,1742120989131,-10000.0,0.0001,2]
[356237633,1742120990091,-10000.0,0.0001,2]
[356237634,1742120996760,1250.0,9e-05,2]
[356237635,1742121007882,-5052.05914037,9.7e-05,2]
[356237657,1742121032309,-252.36224137,9.7e-05,2]
[356237658,1742121032319,-150.0,9.999e-05,2]
[356237659,1742121032329,-30.25909783,9.999e-05,2]
[356237660,1742121032398,-269.74090217,9.999e-05,2]
[356237661,1742121032408,-160.35400047,0.0001,2]
[356237662,1742121032419,-2467.82959223,0.0001,2]
[356237663,1742121032443,-2098.6035,0.0001,2]
[356237664,1742121032477,-410.11441314,0.0001,2]
[356237669,1742121034308,-3235.0,0.0001,2]
[356237675,1742121038163,-432.37,0.0001,2]
[356237685,1742121038223,-4265.0478493,0.0001,2]
[356237686,1742121038280,-143625.0,0.0001,2]
[356237687,1742121038335,-7357.06518282,0.0001,2]
[356237691,1742121040572,-639.11537689,0.0001,2]
[356237692,1742121041655,-33836.01734697,0.0001,2]
[356237693,1742121041665,-49123.31081285,0.0001,2]
[356237694,1742121041677,-389.24638423,0.0001,2]
[356237695,1742121041689,-1966.75235456,0.0001,2]
[356237712,1742121043275,-652.23,0.0001,2]
[356237713,1742121043330,-987.27315157,0.0001,2]
[356237714,1742121043342,-10100.20220968,0.0001,2]
[356237715,1742121043385,-6255712.5040641,0.0001,2]
[356237716,1742121043395,-800.0,0.0001,3]
[356237717,1742121043404,-53353.47918099,0.0001,2]
[356237718,1742121043414,-76299.9179442,0.0001,2]
[356237719,1742121043424,-1856.75121871,0.0001,2]
[356237720,1742121043434,-2629.10329692,0.0001,2]
[356237721,1742121043448,-420.0,0.00010999,2]
[356237722,1742121043459,-3229.24431149,0.00011099,2]
[356237723,1742121043469,-169.25835046,0.000119,2]
[356237724,1742121043479,-226.0,0.00012099,2]
[356237725,1742121043489,-250.0,0.00013177,2]
[356237726,1742121043499,-15012.0,0.00015,10]
[356237727,1742121043508,-1108.9948769,0.00015,10]
[356237728,1742121043517,-204.87391003,0.000158,2]
[356237729,1742121043527,-204.87391003,0.000158,2]
[356237730,1742121043536,-5675.06,0.00016116,2]
[356237731,1742121043546,-19999.99,0.00016116,2]
[356237732,1742121043555,-204.87391003,0.00017635,2]
[356237733,1742121043564,-23900.0,0.00017894,2]
[356237734,1742121043574,-22582.60796416,0.00017968,2]
[356237735,1742121043583,-250.0,0.00019,2]
[356237736,1742121043593,-1500.0,0.00019692,2]
[356237737,1742121043603,-382646.90778782,0.0002,4]
[356237739,1742121043615,-15774.60842237,0.0002,4]
[356237740,1742121043624,-8300.0,0.0002,4]
[356237741,1742121043633,-118460.54144513,0.0002,4]
[356237744,1742121044648,-3392.09008938,0.0002,4]
[356237745,1742121044660,-94917.12023167,0.0002,4]
[356237748,1742121046319,-944.72075747,0.0002,4]
[356237749,1742121046331,-7408.69872565,0.0002,4]
[356237750,1742121046342,-1023.05,0.0002,4]
[356237751,1742121046381,-2745.341767,0.0002,4]
[356237752,1742121046392,-123703.71829348,0.0002,4]
[356237753,1742121046401,-2000.0,0.0002,4]
[356237754,1742121046410,-300.0,0.00021,2]
[356237755,1742121046420,-2000.0,0.00021111,4]
[356237756,1742121046429,-204.87391003,0.00021552,2]
[356237757,1742121046439,-772.31150511,0.00022,12]
[356237758,1742121046448,-2000.0,0.00022222,4]
[356237759,1742121046458,-2000.0,0.00023333,4]
[356237760,1742121046467,-989.8847801,0.00024056,2]
[356237761,1742121046477,-500.0,0.00024274,2]
[356237762,1742121046486,-2000.0,0.00024444,4]
[356237763,1742121046495,-150.99,0.00024444,2]
[356237764,1742121046504,-1768.13,0.000245,2]
[356237765,1742121046514,-3976.529,0.00024621,7]
[356237766,1742121046523,-478.025,0.00024621,7]
[356237767,1742121046533,-502.05779348,0.00024799,2]
[356237768,1742121046542,-344827.465016,0.000248,3]
[356237769,1742121046552,-45967.04205472,0.000249,3]
[356237770,1742121046615,-458.47014067,0.000249,3]
[356237771,1742121046627,-383.5086327,0.000249,3]
[356237772,1742121046639,-626.8265502,0.000249,3]
[356237774,1742121047254,-189.64102603,0.000249,3]
[356237777,1742121055209,-211.16617407,9.999e-05,2]
[356237778,1742121059909,-150.0,0.00025556,4]
[356237780,1742121068453,-162.28401461,0.000249,4]
[356237781,1742121071681,-158.38440415,9.999e-05,2]
[356237782,1742121087588,-130.44942178,9.999e-05,2]
[356237783,1742121087612,-19.55057822,9.999e-05,2]
[356237784,1742121091279,-220.09559585,9.999e-05,2]
[356237785,1742121109141,-162.72512319,9.973e-05,2]
[356237786,1742121109165,-46.51784312,9.999e-05,2]
[356237787,1742121122471,-150.0,9.999e-05,2]
[356237792,1742121139461,-293.47323598,9.9e-05,2]
[356237793,1742121148781,-192.96755021,9.9e-05,2]
[356237796,1742121157764,-177.03,9.9e-05,2]
[356237798,1742121172000,-191.47934214,9.9e-05,2]
[356237801,1742121183682,-151.66819992,9.9e-05,2]
[356237802,1742121230032,-150.0,9.9e-05,2]
[356237803,1742121241597,-154.23,9.9e-05,2]
[356237815,1742121482030,-221.1044482,9.9e-05,2]
[356237818,1742121497020,-3519.97482355,9.9e-05,2]
[356237819,1742121497041,-500.0,9.999e-05,2]
[356237820,1742121497063,-500.0,0.00010273,2]
[356237821,1742121497275,-500.0,0.00010547,2]
[356237822,1742121497298,-500.0,0.00010821,2]
[356237823,1742121497320,-500.0,0.00011095,2]
[356237824,1742121497343,-500.0,0.00011369,2]
[356237825,1742121497364,-500.0,0.00011643,2]
[356237826,1742121497385,-500.0,0.00011917,2]
[356237827,1742121497407,-500.0,0.00012191,2]
[356237828,1742121497429,-500.0,0.00012465,2]
[356237829,1742121497450,-500.0,0.00012739,2]
[356237830,1742121497471,-500.0,0.00013013,2]
[356237831,1742121497493,-300.0,0.00013286,2]
[356237832,1742121497514,-500.0,0.00013287,2]
[356237833,1742121497535,-500.0,0.00013561,2]
[356237834,1742121497556,-500.0,0.00013835,2]
[356237835,1742121497577,-613.58,0.00014109,2]
[356237836,1742121497599,-360.0,0.00014566,2]
[356237837,1742121497621,-195.83,0.00015139,2]
[356237838,1742121497643,-207.11548353,0.000158,2]
[356237839,1742121497665,-195.83,0.00016653,2]
[356237840,1742121497686,-207.11548347,0.00016789,2]
[356237841,1742121497707,-2559.09,0.00017972,2]
[356237842,1742121497728,-195.83,0.00018167,2]
[356237843,1742121497749,-200.0,0.00018728,2]
[356237844,1742121497770,-250.0,0.00019,2]
[356237845,1742121497791,-150.0,0.00019,2]
[356237846,1742121497812,-195.83,0.00019681,2]
[356237847,1742121497835,-2559.09,0.00020236,2]
[356237848,1742121497856,-300.0,0.00021,2]
[356237849,1742121497879,-195.83,0.00021195,2]
[356237850,1742121497901,-207.11548347,0.00021678,3]
[356237851,1742121497922,-2559.09,0.00022499,2]
[356237852,1742121497943,-195.83,0.00022709,2]
[356237853,1742121497964,-350.0,0.00023,2]
[356237854,1742121497988,-776.51,0.00023798,2]
[356237855,1742121498009,-200.0,0.00023854,2]
[356237856,1742121498032,-776.51,0.00023861,2]
[356237857,1742121498054,-6035.85,0.00023908,2]
[356237858,1742121498078,-776.51,0.00023923,2]
[356237859,1742121498102,-776.51,0.00023986,2]
[356237860,1742121498124,-2631.89,0.00023988,2]
[356237861,1742121498147,-776.51,0.00024049,2]
[356237862,1742121498173,-742.4135851,0.00024056,2]
[356237863,1742121498196,-776.51,0.00024111,2]
[356237864,1742121498219,-776.51,0.00024174,2]
[356237865,1742121498244,-776.51,0.00024236,2]
[356237866,1742121498267,-2147.82,0.00024274,2]
[356237867,1742121498290,-776.51,0.00024299,2]
[356237868,1742121498312,-776.51,0.00024362,2]
[356237869,1742121498337,-776.51,0.00024424,2]
[356237870,1742121498360,-532.66,0.00024444,2]
[356237871,1742121498385,-776.51,0.00024487,2]
[356237872,1742121498408,-776.51,0.0002455,2]
[356237873,1742121498433,-171.20496308,0.0002455,33]
[356237874,1742121498457,-183.89,0.00024553,2]
[356237875,1742121498487,-7957.5115,0.0002456,2]
[356237876,1742121498513,-776.51,0.00024612,2]
[356237877,1742121498537,-776.51,0.00024675,2]
[356237878,1742121498562,-776.51,0.00024738,2]
[356237879,1742121498585,-166.66,0.00024761,2]
[356237880,1742121498609,-2559.09,0.00024763,2]
[356237881,1742121498632,-290.43931117,0.00024799,2]
[356237882,1742121498653,-992.97,0.000248,2]
[356237883,1742121498676,-776.51,0.000248,2]
[356237884,1742121498699,-776.51,0.00024863,2]
[356237885,1742121498721,-11894.95268565,0.0002489,2]
[356237886,1742121498751,-1060.56488955,0.00024899,2]
[356237887,1742121498774,-776.51,0.00024925,2]
[356237888,1742121498797,-1282.77119596,0.00024982,2]
[356237889,1742121498835,-776.51,0.00024988,2]
[356237890,1742121498860,-400.0,0.00025,2]
[356237891,1742121498883,-7161.7390948,0.0002531,2]
[356237892,1742121498906,-1850.0,0.00025556,4]
[356237893,1742121498929,-166.66,0.00025578,2]
[356237894,1742121498953,-154.48,0.0002585,2]
[356237895,1742121498976,-166.66,0.00026395,2]
[356237896,1742121499007,-207.11548347,0.00026567,4]
[356237897,1742121499030,-2000.0,0.00026667,4]
[356237898,1742121499054,-171.9,0.00026849,2]
[356237899,1742121499077,-156.66,0.00026849,2]
[356237900,1742121499100,-155.56858531,0.00027,2]
[356237901,1742121499123,-450.0,0.00027,2]
[356237902,1742121499147,-2559.09,0.00027027,2]
[356237903,1742121499173,-166.66,0.00027213,2]
[356237904,1742121499198,-2000.0,0.00027778,4]
[356237905,1742121499220,-166.66,0.0002803,2]
[356237906,1742121499249,-150.0,0.00028611,2]
[356237907,1742121499273,-150.0,0.00028617,2]
[356237908,1742121499296,-150.0,0.00028618,2]
[356237909,1742121499320,-150.0,0.00028624,2]
[356237910,1742121499343,-150.0,0.00028631,2]
[356237911,1742121499365,-150.0,0.00028633,2]
[356237912,1742121499388,-150.0,0.00028633,2]
[356237913,1742121499409,-150.0,0.00028633,2]
[356237914,1742121499432,-150.0,0.00028639,2]
[356237915,1742121499455,-150.0,0.00028639,2]
[356237916,1742121499478,-150.0,0.00028641,2]
[356237917,1742121499501,-150.0,0.00028642,2]
[356237918,1742121499523,-150.0,0.00028643,2]
[356237919,1742121499546,-150.0,0.00028644,2]
[356237920,1742121499569,-150.0,0.00028648,2]
[356237921,1742121499591,-150.0,0.00028649,2]
[356237922,1742121499613,-150.0,0.0002865,2]
[356237923,1742121499634,-383.33006084,0.0002865,2]
[356237924,1742121499656,-150.0,0.00028655,2]
[356237925,1742121499678,-150.0,0.00028657,2]
[356237926,1742121499699,-500.0,0.00028657,2]
[356237927,1742121499720,-563.83598281,0.00028657,2]
[356237928,1742121499742,-150.0,0.00028658,2]
[356237929,1742121499764,-150.0,0.0002866,2]
[356237930,1742121499786,-150.0,0.00028663,2]
[356237931,1742121499807,-150.0,0.00028664,2]
[356237932,1742121499829,-150.0,0.0002867,2]
[356237933,1742121499851,-150.0,0.00028673,2]
[356237934,1742121499873,-150.0,0.00028677,2]
[356237935,1742121499894,-150.0,0.00028678,2]
[356237936,1742121499920,-150.0,0.00028679,2]
[356237937,1742121499942,-150.0,0.00028679,2]
[356237938,1742121499964,-150.0,0.00028681,2]
[356237939,1742121499987,-150.0,0.00028686,2]
[356237940,1742121500009,-150.0,0.00028691,2]
[356237941,1742121500032,-150.0,0.00028692,2]
[356237942,1742121500056,-150.0,0.00028694,2]
[356237943,1742121500078,-150.0,0.00028698,2]
[356237944,1742121500100,-150.0,0.00028702,2]
[356237945,1742121500122,-1007.36282815,0.00028704,2]
[356237946,1742121500145,-150.0,0.00028705,2]
[356237947,1742121500172,-150.0,0.00028706,2]
[356237948,1742121500194,-150.0,0.00028714,2]
[356237949,1742121500217,-150.0,0.00028715,2]
[356237950,1742121500240,-150.0,0.00028716,2]
[356237951,1742121500263,-150.0,0.0002872,2]
[356237952,1742121500285,-150.0,0.00028721,2]
[356237953,1742121500307,-150.0,0.00028724,2]
[356237954,1742121500331,-150.0,0.00028725,2]
[356237955,1742121500353,-150.0,0.0002873,2]
[356237956,1742121500375,-150.0,0.00028732,2]
[356237957,1742121500396,-150.0,0.00028732,2]
[356237958,1742121500418,-150.0,0.00028736,2]
[356237959,1742121500440,-150.0,0.00028736,2]
[356237960,1742121500462,-150.0,0.00028738,2]
[356237961,1742121500485,-150.0,0.00028746,2]
[356237962,1742121500506,-150.0,0.00028747,2]
[356237963,1742121500528,-150.0,0.00028748,2]
[356237964,1742121500550,-150.0,0.00028754,2]
[356237965,1742121500572,-150.0,0.00028758,2]
[356237966,1742121500595,-150.0,0.00028759,2]
[356237967,1742121500616,-150.0,0.00028762,2]
[356237968,1742121500638,-150.0,0.00028767,2]
[356237969,1742121500660,-150.0,0.0002877,2]
[356237970,1742121500818,-150.0,0.0002877,2]
[356237971,1742121500840,-150.0,0.00028772,2]
[356237972,1742121500861,-150.0,0.00028776,2]
[356237973,1742121500884,-150.0,0.0002878,2]
[356237974,1742121500907,-150.0,0.00028789,2]
[356237975,1742121500929,-150.0,0.00028791,2]
[356237976,1742121500952,-150.0,0.00028792,2]
[356237977,1742121500975,-150.0,0.00028796,2]
[356237978,1742121500999,-150.0,0.00028798,2]
[356237979,1742121501022,-150.0,0.000288,2]
[356237980,1742121501043,-150.0,0.00028805,2]
[356237981,1742121501066,-150.0,0.00028807,2]
[356237982,1742121501089,-150.0,0.00028807,2]
[356237983,1742121501111,-150.0,0.00028807,2]
[356237984,1742121501133,-150.0,0.00028811,2]
[356237985,1742121501156,-150.0,0.00028819,2]
[356237986,1742121501181,-150.0,0.00028821,2]
[356237987,1742121501203,-150.0,0.00028822,2]
[356237988,1742121501225,-150.0,0.00028823,2]
[356237989,1742121501252,-150.0,0.00028828,2]
[356237990,1742121501274,-150.0,0.00028828,2]
[356237991,1742121501295,-150.0,0.00028831,2]
[356237992,1742121501317,-150.0,0.00028832,2]
[356237993,1742121501339,-150.0,0.00028834,2]
[356237994,1742121501361,-150.0,0.00028837,2]
[356237995,1742121501383,-150.0,0.00028839,2]
[356237996,1742121501405,-150.0,0.0002884,2]
[356237997,1742121501427,-150.0,0.00028844,2]
[356237998,1742121501447,-166.66,0.00028847,2]
[356237999,1742121501469,-150.0,0.00028853,2]
[356238000,1742121501491,-236.6398052,0.00028862,2]
[356238001,1742121501513,-150.0,0.00028865,2]
[356238002,1742121501535,-150.0,0.00028866,2]
[356238003,1742121501558,-150.0,0.00028868,2]
[356238004,1742121501581,-150.0,0.00028871,2]
[356238005,1742121501603,-150.0,0.00028871,2]
[356238006,1742121501624,-150.0,0.00028879,2]
[356238007,1742121501646,-150.0,0.00028879,2]
[356238008,1742121501668,-150.0,0.00028882,2]
[356238009,1742121501691,-150.0,0.00028884,2]
[356238010,1742121501713,-150.0,0.00028887,2]
[356238011,1742121501734,-2000.0,0.00028889,4]
[356238012,1742121501755,-500.0,0.00029,2]
[356238013,1742121501776,-2559.09,0.00029291,2]
[356238014,1742121501798,-500.0,0.00029397,2]
[356238015,1742121501819,-350.6515,0.00029871,2]
[356238016,1742121501840,-817.4434,0.00029926,120]
[356238017,1742121501862,-550.0,0.00031,2]
[356238018,1742121501883,-207.11548347,0.00031456,6]
[356238019,1742121501905,-2559.09,0.00031555,2]
[356238020,1742121501925,-1114.42,0.00031977,2]
[356238021,1742121501947,-1290.09961625,0.00032058,2]
[356238022,1742121501969,-159.22,0.00032061,30]
[356238023,1742121501992,-181.92,0.00032111,2]
[356238024,1742121502013,-1384.96,0.00032111,120]
[356238025,1742121502035,-2000.0,0.00032111,120]
[356238026,1742121502056,-198.09,0.00032111,2]
[356238027,1742121502076,-2124.02,0.00032186,2]
[356238028,1742121502098,-250.31,0.00032259,120]
[356238029,1742121502118,-172.39,0.00032282,2]
[356238030,1742121502139,-1852.42,0.00032313,2]
[356238031,1742121502164,-250.0,0.00032313,2]
[356238032,1742121502187,-250.0,0.00032313,2]
[356238033,1742121502210,-1493.77,0.00032313,120]
[356238034,1742121502231,-15245.88,0.00032313,2]
[356238035,1742121502257,-1000.0,0.00032313,2]
[356238036,1742121502278,-5575.84,0.00032368,2]
[356238037,1742121502299,-171.9,0.00032646,2]
[356238038,1742121502320,-600.0,0.00033,2]
[356238039,1742121502342,-695.77803094,0.00033348,2]
[356238040,1742121502364,-551.1,0.00033384,2]
[356238041,1742121502386,-1000.0,0.0003342,2]
[356238042,1742121502407,-1000.0,0.00033471,2]
[356238043,1742121502429,-551.1,0.00033472,2]
[356238044,1742121502450,-1000.0,0.00033473,2]
[356238045,1742121502471,-1000.0,0.00033543,2]
[356238046,1742121502493,-551.1,0.0003356,2]
[356238047,1742121502514,-150.0,0.00033599,2]
[356238048,1742121502534,-150.0,0.00033603,2]
[356238049,1742121502556,-551.1,0.00033647,2]
[356238050,1742121502576,-150.0,0.00033675,2]
[356238051,1742121502597,-150.0,0.00033698,2]
[356238052,1742121502618,-551.1,0.00033735,2]
[356238053,1742121502640,-2559.09,0.00033819,2]
[356238054,1742121502662,-551.1,0.00033823,2]
[356238055,1742121502682,-181.92,0.00033895,2]
[356238056,1742121502703,-155.48,0.00033906,2]
[356238057,1742121502724,-551.1,0.00033911,2]
[356238058,1742121502746,-551.1,0.00033999,2]
[356238059,1742121502767,-551.1,0.00034087,2]
[356238060,1742121502788,-19995.9,0.00034091,2]
[356238061,1742121502809,-177.04,0.0003415,120]
[356238062,1742121502830,-551.1,0.00034175,2]
[356238063,1742121502851,-551.1,0.00034262,2]
[356238064,1742121502872,-551.1,0.0003435,2]
[356238065,1742121502892,-500.0,0.00034362,5]
[356238066,1742121502913,-551.1,0.00034438,2]
[356238067,1742121502935,-551.1,0.00034526,2]
[356238068,1742121502955,-150.0,0.00034548,10]
[356238069,1742121502977,-551.1,0.00034614,2]
[356238070,1742121502999,-551.1,0.00034702,2]
[356238071,1742121503020,-156.66,0.00034716,2]
[356238072,1742121503041,-551.1,0.0003479,2]
[356238073,1742121503061,-551.1,0.00034878,2]
[356238074,1742121503083,-551.1,0.00034965,2]
[356238075,1742121503104,-551.1,0.00035053,2]
[356238076,1742121503126,-181.92,0.00035679,2]
[356238077,1742121503146,-359.88,0.00036031,2]
[356238078,1742121503169,-1149.05,0.00036031,2]
[356238079,1742121503190,-442.2,0.00036031,2]
[356238080,1742121503212,-2559.09,0.00036083,2]
[356238081,1742121503233,-255.19,0.00036165,4]
[356238082,1742121503256,-207.11548347,0.00036344,7]
[356238083,1742121503278,-1493.77,0.00036352,120]
[356238084,1742121503301,-1000.0,0.00036352,2]
[356238085,1742121503322,-895.0,0.00036631,5]
[356238086,1742121503344,-58788.0022,0.00036832,2]
[356238087,1742121503366,-181.92,0.00037462,2]
[356238088,1742121503388,-2559.09,0.00038347,2]
[356238089,1742121503409,-171.9,0.00038443,2]
[356238090,1742121503431,-181.92,0.00039246,2]
[356238091,1742121503451,-999.99400027,0.00039842,5]
[356238092,1742121503472,-1701.69056764,0.00039899,12]
[356238093,1742121503493,-356.34025715,0.00039899,2]
[356238094,1742121503514,-2602.6586,0.000399,2]
[356238095,1742121503535,-151.0,0.0003999,14]
[356238096,1742121503557,-256.93626152,0.00039999,31]
[356238097,1742121503580,-500.0,0.00039999,31]
[356238098,1742121503602,-612.50304187,0.00039999,31]
[356238099,1742121503624,-500.0,0.00039999,31]
[356238100,1742121503646,-500.0,0.00039999,31]
[356238101,1742121503668,-500.0,0.00039999,31]
[356238102,1742121503689,-31810.50388598,0.0004,30]
[356238103,1742121503710,-2700.61402839,0.0004,14]
[356238104,1742121503748,3405.9965,0.00029871,2]
[356238105,1742121503797,150.0,0.00025485,2]
[356238106,1742121503823,150.0,0.00025328,2]
[356238107,1742121503849,150.0,0.00025463,2]
[356238108,1742121503875,150.0,0.00025331,2]
[356238109,1742121503902,150.0,0.00025485,2]
[356238110,1742121503927,150.0,0.00025451,2]
[356238111,1742121503957,150.0,0.00025362,2]
[356238112,1742121503982,150.0,0.00028395,2]
[356238113,1742121504128,150.0,0.00025488,2]
[356238114,1742121504160,150.0,0.00025491,2]
[356238115,1742121504192,150.0,0.00028395,2]
[356238116,1742121504219,150.0,0.00025323,2]
[356238117,1742121504248,150.0,0.00025535,2]
[356238118,1742121504273,150.0,0.00028369,2]
[356238119,1742121504300,150.0,0.00025489,2]
[356238120,1742121504326,150.0,0.00025552,2]
[356238121,1742121504353,150.0,0.00025388,2]
[356238122,1742121504380,150.0,0.00025373,2]
[356238123,1742121504406,150.0,0.00028488,2]
[356238124,1742121504432,150.0,0.00028527,2]
[356238125,1742121504459,150.0,0.00025441,2]
[356238126,1742121504485,150.0,0.0002851,2]